Cogmind - Beta 12 @@@ ROGUE MODE // 2024.01.13 @ 00:38:33 Player: morimori Result: Destroyed self with Grenade Launcher Performance ------------- Evolutions (0) 0 Regions Visited (2) 400 Robots Destroyed (17) 85 Value Destroyed (183) 183 Prototype IDs (0) 0 Alien Tech Used (0) 0 Bonus (92) 92 TOTAL SCORE: 760 Bonus ------- Follower Combat Kills 120 Friendly Fire -28 Cogmind --------- Core Integrity 0/250 Matter 290/300 Energy 242/250 System Corruption 0% Temperature Cool (0) Movement Rolling (140) Ox4 Location -10/Mines Parts ------- > --- POWER (1) -------- Ion Engine > --- PROPULSION (2) --- Wheel Wheel > --- UTILITY (2) ------ Huge Storage Unit Sensor Array > --- WEAPON (2) ------- Small Laser Grenade Launcher > --- INVENTORY (25) --- Light Ion Engine Light Ion Engine Light Ion Engine Light Nuclear Core Light Nuclear Core Light Treads Light Treads Aluminum Leg Aluminum Leg Aluminum Leg Aluminum Leg Wheel Compact Wheel Hover Unit Small Storage Unit Large Storage Unit High-capacity Storage Unit Medium Matter Pod (100) Visual Processing Unit Improved Terrain Scanner Improved Terrain Scanner ECM Suite Beam Cannon Light Assault Rifle Mining Laser Peak State ------------ > --- POWER ------------ Light Ion Engine > --- PROPULSION ------- Wheel Wheel > --- UTILITY ---------- Huge Storage Unit Sensor Array > --- WEAPON ----------- Light Assault Rifle Light Assault Rifle > --- INVENTORY -------- Ion Engine Light Ion Engine Light Ion Engine Light Ion Engine Light Nuclear Core Light Treads Light Treads Aluminum Leg Aluminum Leg Aluminum Leg Wheel Compact Wheel Hover Unit Small Storage Unit Large Storage Unit High-capacity Storage Unit Medium Matter Pod Visual Processing Unit Improved Terrain Scanner Improved Terrain Scanner ECM Suite Grenade Launcher Mining Laser [Rating: 10] Favorites ----------- Power Light Ion Engine Engine Light Ion Engine Propulsion Wheel Wheel Wheel Utility Huge Storage Unit Device Sensor Array Storage Huge Storage Unit Weapon Small Laser Energy Gun Small Laser Ballistic Gun Light Assault Rifle Launcher Grenade Launcher Build | -11 -10 -10 ------- Run | Jun Mat Min Slots Evolved . | . . . Power . | . . . Propulsion . | . . . Utility . | . . . Weapon . | . . . Parts Attached 18 | 8 7 3 Power 3 | 1 1 1 Engine 3 | 1 1 1 Core . | . . . Reactor . | . . . Propulsion 5 | 3 2 . Treads . | . . . Leg . | . . . Wheel 5 | 3 2 . Hover . | . . . Flight . | . . . Utility 4 | 2 2 . Device 2 | 1 1 . Storage 2 | 1 1 . Processor . | . . . Hackware . | . . . Protection . | . . . Artifact . | . . . Weapon 6 | 2 2 2 Energy Gun 2 | 1 . 1 Energy Cannon . | . . . Ballistic Gun 3 | 1 2 . Ballistic Cannon . | . . . Launcher 1 | . . 1 Special Weapon . | . . . Impact Weapon . | . . . Slashing Weapon . | . . . Piercing Weapon . | . . . Special Melee Weapon . | . . . Unidentified Prototypes . | . . . Parts Lost 6 | . 5 1 Power 2 | . 1 1 Propulsion 1 | . 1 . Utility 1 | . 1 . Weapon 2 | . 2 . Highest Loss Streak 5 | . 5 1 To Critical Strikes . | . . . Average Slot Usage (%) 99 | . 97 100 Engine 13 | . 13 14 Wheel 27 | . 27 28 Device 13 | . 12 14 Storage 14 | . 14 14 Energy Gun 6 | . 8 5 Ballistic Gun 15 | . 19 12 Launcher 5 | . . 10 Naked Turns . | . . . Heaviest Build 90 | 12 87 90 Greatest Support 26 | 26 20 20 Greatest Overweight (x) 8 | 3 8 4 Average Overweight (x) 2 | . 3 4 Largest Inventory Capacity 25 | 8 25 25 Average Capacity 19 | 7 24 25 Most Carried 25 | 8 23 25 Average Carried 15 | 6 16 23 Final Capacity 25 | 8 25 25 Final Carried 25 | 8 23 25 Class Distribution -------------------- 50% | Scavenger-Mutant 49% | Mutant Dominant Class ---------------- Mutant | -10/Materials Scavenger-Mutant | -10/Mines Resources | -11 -10 -10 ----------- Run | Jun Mat Min Matter Collected 601 | 407 147 47 Remotely . | . . . Salvage Created 457 | 235 222 . Parts 39 | 18 21 . Haulers Intercepted 1 | . 1 . Recyclers Shooed 1 | . . 1 Parts Field Recycled . | . . . Retrieved Matter . | . . . Parts Self-Destructed . | . . . Prevented . | . . . Kills | -11 -10 -10 ------- Run | Jun Mat Min Combat Hostiles Destroyed 6 | . 6 . Guns 6 | . 6 . Classes Destroyed 7 | 3 4 . Worker 3 | 3 . . Tunneler 5 | 5 . . Hauler 1 | . 1 . Recycler 1 | 1 . . Watcher 1 | . 1 . Swarmer 4 | . 4 . Grunt 2 | . 2 . Best Kill Streak 3 | 2 3 . Combat Bots Only 2 | . 2 . Max Kills in Single Turn 1 | 1 1 . Gunslinging . | . . . Exploded . | . . . Melee . | . . . Uniques/NPCs Destroyed . | . . . Combat | -11 -10 -10 -------- Run | Jun Mat Min Damage Taken 746 | . 590 156 Core 250 | . 202 48 Absorbed by Shields . | . . . Core Remaining (%) 100 | 100 . . Volleys Fired 53 | 24 25 4 Largest 2 | 2 2 2 Hottest 70 | 60 60 70 Shots Fired 103 | 47 49 7 Gun 100 | 47 49 4 Cannon . | . . . Launcher 3 | . . 3 Special . | . . . Kinetic 51 | 24 25 2 Thermal 49 | 23 24 2 Explosive 3 | . . 3 Electromagnetic . | . . . Robot Hit Streak 8 | 8 7 1 Robot Miss Streak 7 | 2 7 2 Penetration Max . | . . . Secondary Targets 1 | . 1 . Max Gunslinging Chain 1 | . 1 . Shots Hit Robots 61 | 31 28 2 Core Hits 26 | 10 14 2 Critical Kills . | . . . Critical Parts Destroyed . | . . . Critical Strikes . | . . . Melee Attacks . | . . . Impact . | . . . Slashing . | . . . Piercing . | . . . Sneak Attacks . | . . . Combat Hostiles . | . . . Follow-up Attacks . | . . . Damage Inflicted 719 | 353 317 49 Guns 691 | 353 317 21 Cannons . | . . . Explosions 28 | . . 28 Melee . | . . . Ramming . | . . . Kinetic 348 | 166 172 10 Thermal 343 | 187 145 11 Explosive 28 | . . 28 Electromagnetic . | . . . Impact . | . . . Slashing . | . . . Piercing . | . . . Highest Corruption . | . . . Average Corruption . | . . . Corruption Purged . | . . . Corruption Blocked . | . . . Overload Shots . | . . . Overflow Damage . | . . . Projectiles . | . . . Explosions . | . . . Melee . | . . . Knockbacks . | . . . Impact . | . . . Kinetic . | . . . Secondary . | . . . Self-Inflicted Damage 63 | . . 63 Shots 3 | . . 3 Rammed . | . . . Targets Rammed . | . . . Kicked . | . . . Crushed . | . . . Highest Temperature 75 | 20 75 39 Average Temperature 33 | 20 39 22 Received Heat Transfer 165 | . 102 63 Siege Activations . | . . . Robots Corrupted . | . . . Combat Hostiles . | . . . Parts Fried . | . . . Impact Corruptions . | . . . Robots Melted . | . . . Combat Hostiles . | . . . Parts Melted . | . . . Heat Transferred 775 | 425 325 25 Parts Sabotaged . | . . . Parts Stolen . | . . . Parts Stripped . | . . . Power Chain Reactions . | . . . Missiles Intercepted . | . . . Alert | -11 -10 -10 ------- Run | Jun Mat Min Peak Influence 192 | 45 192 118 Initial . | . . . Average 33 | 17 64 22 Maximum Alert Level . | . . . Low Security (%) 100 | 100 100 100 Level 1 . | . . . Level 2 . | . . . Level 3 . | . . . Level 4 . | . . . Level 5 . | . . . High Security . | . . . Max Security . | . . . Squads Dispatched 1 | . 1 . Investigation . | . . . Extermination . | . . . Reinforcement 1 | . 1 . Assault . | . . . Garrison . | . . . Intercept . | . . . Searches Triggered . | . . . Construction Impeded . | . . . Haulers Reinforced . | . . . Active Scanning Responses . | . . . Cargo Convoy Interrupts . | . . . Stealth | -11 -10 -10 --------- Run | Jun Mat Min Distress Signals 1 | . 1 . Communications Jammed . | . . . Distress Signals . | . . . Times Spotted 22 | . 13 9 Peak Tracking Total 8 | . 5 8 Tactical Retreats 2 | . 1 1 Traps | -11 -10 -10 ------- Run | Jun Mat Min Traps Triggered . | . . . Indirectly . | . . . Trap Hack Attempts . | . . . Triggered . | . . . Disarmed . | . . . Reprogrammed . | . . . Reused . | . . . Traps Extracted . | . . . Installed . | . . . Triggered . | . . . Machines | -11 -10 -10 ---------- Run | Jun Mat Min Machines Disabled . | . . . Max in Single Turn . | . . . Machines Repaired . | . . . Machines Sabotaged . | . . . Overloaded Fab Kills . | . . . Hacking | -11 -10 -10 --------- Run | Jun Mat Min Machines Accessed 5 | . 4 1 Terminals 5 | . 4 1 Fabricators . | . . . Repair Stations . | . . . Recycling Units . | . . . Scanalyzers . | . . . Garrison Access . | . . . Total Hacks 12 | . 10 2 Successful 7 | . 7 . Failed 5 | . 3 2 Catastrophic . | . . . Database Lockouts . | . . . Manual 6 | . 4 2 Terminals 12 | . 10 2 Fabricators . | . . . Repair Stations . | . . . Recycling Units . | . . . Scanalyzers . | . . . Garrison Access . | . . . Terminal Hacks 6 | . 6 . Part Schematic 2 | . 2 . Robot Analysis 1 | . 1 . Branch Access Points 1 | . 1 . Unreport Threat 2 | . 2 . Fabricator Hacks . | . . . Repair Station Hacks . | . . . Recycling Unit Hacks . | . . . Scanalyzer . | . . . Garrison Access Hacks . | . . . Unauthorized Hacks 1 | . 1 . Terminals 1 | . 1 . Botnet 1 | . 1 . Fabricators . | . . . Repair Stations . | . . . Recycling Units . | . . . Scanalyzers . | . . . Garrison Access . | . . . Data Cores Recovered . | . . . Used . | . . . Hacking Detections 5 | . 4 1 Full Trace Events . | . . . Feedback Events . | . . . Feedback Blocked . | . . . Robot Schematics Acquired . | . . . Robots Built . | . . . Authchips . | . . . Time . | . . . Total Robot Build Rating . | . . . Part Schematics Acquired 2 | . 2 . Parts Built . | . . . Authchips . | . . . Time . | . . . Total Part Build Rating . | . . . Parts Repaired . | . . . Time . | . . . Parts Recycled . | . . . Recycled Matter . | . . . Retrieved Matter . | . . . Retrieved Components . | . . . Parts Scanalyzed . | . . . Part Schematics Acquired . | . . . Parts Damaged . | . . . Bothacking | -11 -10 -10 ------------ Run | Jun Mat Min Used RIF Installer . | . . . Robots Hacked . | . . . Non-combat . | . . . Combat . | . . . Robot Hacks Applied . | . . . Relay Couplers Released . | . . . Fabnet Peak Effective % . | . . . Robots Rewired . | . . . Allies Hacked . | . . . Hacks Repelled . | . . . Allies | -11 -10 -10 -------- Run | Jun Mat Min Total Allies 5 | . . 5 Largest Group 5 | . . 5 Highest-Rated Group 86 | . . 86 Highest-Rated Ally 31 | . . 31 Total Orders . | . . . Ally Attacks 34 | . . 34 Total Damage 434 | . . 434 Kills 8 | . . 8 Allies Corrupted . | . . . Allies Melted . | . . . Intel | -11 -10 -10 ------- Run | Jun Mat Min Robot Analysis Total 1 | . 1 . Derelict Logs Recovered . | . . . Drone Launches . | . . . Drone Recoveries . | . . . Exploration | -11 -10 -10 ------------- Run | Jun Mat Min Turns Passed 1719 | 582 502 635 Spaces Moved 944 | 237 282 425 Core 8 | 8 . . Treads . | . . . Legs . | . . . Wheels 936 | 229 282 425 Hover . | . . . Flight . | . . . Fastest Speed 50 | 50 80 140 Average Speed 125 | 85 138 140 Slowest Speed 200 | 200 200 140 Overloaded Moves . | . . . Propulsion Burnouts . | . . . Robots Hopped . | . . . Cave-ins Triggered . | . . . Exploration Rate (%) 40 | 10 40 72 Regions Visited 2 Branch Regions 1 Pre-discovered Areas . | . . . Known Exits Taken 1 | . 1 . Unknown Exits Taken 1 | 1 . . Scrap Searched 1 | . . 1 Spaces Dug . | . . . Terrain Destroyed 19 | . . 19 Melee . | . . . Projectile . | . . . AOE 19 | . . 19 Terrain Rammed . | . . . Walls Destroyed . | . . . Machines Disabled . | . . . Actions | -11 -10 -10 --------- Run | Jun Mat Min Total 1371 | 568 343 460 Wait 322 | 285 13 24 Move 942 | 236 281 425 Hop . | . . . Pick Up 30 | 11 16 3 Fast Attach 11 | 7 3 1 Attach 3 | . 2 1 Detach . | . . . Swap 4 | 1 2 1 Drop 6 | 4 1 1 Fire 53 | 24 25 4 Melee . | . . . Ram . | . . . Kick . | . . . Crush . | . . . Escape Stasis . | . . . Rewire . | . . . Trap . | . . . Miscellaneous . | . . . Route ------- -11/Junkyard -10/Materials -10/Mines (discovered 2 exits: [*Mat x2]) History --------- Turn | Location | Event 22 | -11/Junkyard | Discovered new exit (range 16) 583 | -11/Junkyard | Entered Materials 584 | -10/Materials | Build established: Mutant 761 | -10/Materials | Identified exit to Mines 849 | -10/Materials | Core integrity fell below 50% 885 | -10/Materials | Core integrity fell below 20% 915 | -10/Materials | Lost 5 parts (1p1n1u2w) 1085 | -10/Materials | Entered Mines 1144 | -10/Mines | Assisted by bots powering up and referring to "LRC-V3" 1156 | -10/Mines | Build established: Scavenger-Mutant 1536 | -10/Mines | Discovered new exit (range 13) 1571 | -10/Mines | Discovered new exit (range 5) 1684 | -10/Mines | Assembled infested the area 1720 | -10/Mines | Destroyed self with Grenade Launcher Last Messages --------------- 01272_ U-05 Engineer lays Concrete. 01275_ Acquired 37 matter. 01276_ U-05 Engineer builds a Wall. 01281_ U-05 Engineer lays Concrete. 01283_ U-05 Engineer builds a Wall. 01466_ G-47 Trooper destroyed. 01486_ Acquired Lgt. Nuclear Core. 01490_ Acquired Aluminum Leg. 01496_ Dropped Lgt. Assault Rifle. 01497_ Acquired Sml. Laser. 01498_ Acquired 10 matter. 01515_ Connecting with Terminal... 01536_ EXIT=FOUND 01576_ A pair of derelicts emerge from the shadows: "We're, um, lost. You wouldn't happen to know the way out of here, would you?" 01684_ ALERT: Infestation in the mines, dispatching Demolisher response squad. 01700_ R-06 Scavenger system corrupted by crushing effect. 01700_ R-06 Scavenger knocked back. 01701_ R-06 Scavenger system terminally corrupted. Map ----- +----------------------------------------------------+ | | | | | | | | | | | | | | | | | | | | | | | | | | | | | | | | | | | ????????????????????????????????????? | | ????????????????????????????????????? | | ????????######??????????????????????# | | ??????### ##?????????????????????# | | ??????? #?????????????????????# | | ???????? a #?????????????????????# | | ?????????a #?????????????????????? | | ??????????# #?????????????????????? | | ??????????# @#??????????????????????? | | ??????????# #??????????????????????? | | ??????????# ##??????????????????????? | | ??????????# #????##?????????????????? | | ??????????# #???# ?????????????????? | | ??????????# #??? ?????????????????? | | ??????????# #??? ?????????????????? | | ??????????# #??? ?????????????????? | | ??????????# #??? ?????????????????? | | ??????????# #???# ?????????????????? | | ??????????# #???# #?????????????????? | | ??????????#!#???# #?????????????????? | | ?????# ####=#???# #????????????####?? | | ?????#$ ? ??#???# #??????####### ##? | | ?????######%##### #???#### #? | | ??????????#% #??## ## | | ??????????####### #??# """ | | ????????????????# #### """ | | ????????????????# """ ## # | | ????????????????# ##### ### # | | ????????????????# #???#### #?# # | | ????????????????# #??????### #?# # | | ????????????????# ##???????## ##?# | | ??????????????### ##???????# ##??### | | ?????????????## #???????# #?????? | +----------------------------------------------------+ Best States ------------- Heat Dissipation 25 Energy Generation 10 Energy Capacity 250 Matter Stores 300 Matter Capacity 300 Sight Range 16 Robot Scan Range 14 Terrain Scan Density 10 Evasion (%) 44 Item Schematics ----------------- Structural Scanner | -10/Materials | Hacked Lrg. Storage Unit | -10/Materials | Hacked Robot Schematics ------------------ None Fabricated ------------ Nothing Alien Tech Used ----------------- None Achievements -------------- None Challenges ------------ None Game ------ Seed PulseGlidesysVibroblade Manual? 0 Play Time 00:12:58 Cumulative 117.1 hours Start 2024.01.13 @ 00:28:44 End 2024.01.13 @ 00:38:33 Sessions 1 Manual Loads 0 Difficulty Rogue Special Mode None Game No. 76 Rogue 76 Adventurer 0 Explorer 0 Win Type - Total 1 Types 1/0/0/0/0/0/0/0/0 Lore% 41 Gallery% 45 Achievement% 39 Wizard Run 0 Options --------- ASCII 0 Keyboard 1 Movement Vi Keybinds 0 Fullscreen 2 Font 18/SmallcapsGlow Map View 76x50 Tactical HUD 1 Map Filters NONE Filters NONE Steam 1 RUN: 96da79f0-c92f-48e3-b4df-55728d110e75